Workbook

Sheet Розрахунок Мій гаманець
L2: Калькулятор
L3: «МІЙ ГАМАНЕЦЬ» – на поточні потреби
E5: ячейки блакитногого кольору заповнюються Клієнтом виходячи з обраних умов кредитування
D6: Умови кредитування, обрані споживачем:
D7: Дата видачі кредиту: | K7: =TODAY() -> 2022-12-23 | AC7: =YEAR(K11) -> 2025 | AD7: =YEAR(K7) -> 2022 | AE7: =MONTH(K11) -> 12 | AF7: =MONTH(K7) -> 12
D8: Вартість предмету іпотеки, грн.: | K8: 0
D9: Сума кредиту*, грн.: | K9: 100000 | L9: *від 10 000 до 100 000 грн.
D10: Срок кредитування, місяців | K10: 36
D11: Кінцева дата повернення кредиту: | K11: =K7+((K10/12)*365) -> 2025-12-22 | AC11: =AC7-AD7 -> 3 | AE11: =AE7-AF7 -> 0
D12: Порядок погашення кредиту, грн.: | K12: щомісяця по | L12: =CEILING(K9/K10,1) -> 2778 | M12: останній платіж | O12: =K9-(L12*(K10-1)) -> 2770
D13: Дата погашення кредиту та процентів: | K13: щомісяця | L13: =DAY(K7) -> 23 | M13: числа | AE13: =12+AE11 -> 12
D14: Процентна ставка (фіксована): | K14: 0.35 | L14: річних | AE14: =24+AE11 -> 24
D15: разова комісія за видачу готівкових коштів: | K15: 0 | L15: від суми наданого кредиту | AD15: =IF(AC11=0,AE11,IF(AC11=1,AE13,IF(AC11=2,AE14,#REF!))) -> 
D16: Щомісячна комісія за проведення розрахунків: | K16: 0.01 | L16: від суми наданого кредиту | O16: =K9*K16 -> 1000
D17: щорічна комісія за проведення розрахунків: | K17: 0 | L17: від суми наданого кредиту
D18: послуги нотаріуса | K18: 0 | L18: грн.
D19: послуги оцінювача | K19: 0 | L19: грн.
D20: Послуги страховика (один раз на рік)** | K20: 0 | L20: **для позичальників віком від 50 до 60 років – порука іншої фізичної особи або страхування від нещасних випадків
D21: державне мито | K21: 0 | L21: від вартості предмету іпотеки
D22: пенсійний збір | K22: 0 | L22: від вартості предмету іпотеки
V25: Дата розрахунку: | W25: =TEXT(K7,"DD.MM.YYYY")&" р." -> DD.MM.YYYY р.
D26: ТАБЛИЦЯ обчислення загальної вартості кредиту для споживача та реальної річної процентної ставки за договором про споживчий кредит
D28: № з/п | E28: Дата видачі кредиту/ дата платежу | F28: Кількість днів у розрахун- ковому періоді | I28: Чиста сума кредиту/ сума платежу за розрахунковий період, грн. | J28: Види платежів за кредитом | V28: Реальна річна процентна ставка, % | W28: Загальна вартість кредиту, грн
J29: сума кредиту за договором | K29: проценти за користування кредитом | L29: платежі за додаткові та супутні послуги
L30: банку | P30: кредитного посередника (за наявності) | R30: третіх осіб
A31: фільтр | L31: щомісячна комісія за проведення розрахунків | M31: розрахунково-касове обслуговування | N31: комісія за видачу готівкових коштів | O31: інші послуги банку | P31: комісійний збір | Q31: інша плата за послуги кредитного посередника | R31: послуги нотаріуса | S31: послуги оцінювача | T31: послуги страховика | U31: інші послуги третіх осіб
D32: 1 | E32: 2 | F32: 3 | G32: 4 | H32: 5 | I32: 4 | J32: 5 | K32: 6 | L32: 7 | M32: 8 | N32: 9 | O32: 10 | P32: 11 | Q32: 12 | R32: 13 | S32: 14 | T32: 15 | U32: 16 | V32: 17 | W32: 18
A33: =IF(B33<=$K$11,1,0) -> 1 | D33: 1 | E33: =K7 -> 2022-12-23 | F33: х | I33: =SUM(J33:U33) -> -100000 | J33: =-K9 -> -100000 | K33: х | N33: =K9*K15 -> 0 | O33: =K9*K17 -> 0 | R33: =K18+(K21*K8)+(K22*K8) -> 0 | S33: =K19 -> 0 | T33: =K9*K20 -> 0 | V33: х | W33: х
A34: 0 | E34: =EOMONTH(K7,0) -> 2022-12-31 | F34: =IF(A34=1,E34-E33,0) -> 0 | I34: =SUM(J34:O34) -> 0
A35: =IF(B35<=$K$10,1,0) -> 1 | B35: 1 | D35: =D33+1 -> 2 | E35: =MIN(DATE(YEAR(E33),MONTH(E33)+1,DAY($L$13)),$K$11) -> 2023-01-23 | F35: =E35-E33 -> 31 | G35: =EOMONTH(E33,0)-E33 -> 8 | H35: =E35-EOMONTH(E33,0) -> 23 | I35: =SUM(J35:U35) -> 6750.6 | J35: =L12 -> 2778 | K35: =ROUND($K$9*(($K$14/(IF(ROUND(YEAR(E33)/4,0)-YEAR(E33)/4=0,366,365)))*G35)+$K$9*(($K$14/(IF(ROUND(YEAR(E35)/4,0)-YEAR(E35)/4=0,366,365)))*H35),2) -> 2972.6 | L35: =IF(A35=1,IF(AND(YEAR($K$11)=YEAR(EDATE(E34,1)),MONTH($K$11)=MONTH(EDATE(E34,1))),$O$16-$O$38,$O$16),0) -> 1000 | V35: х | W35: х
A36: 1 | B36: =B35+1 -> 2 | D36: 3 | E36: =IF(AND(YEAR($K$11)=YEAR(EDATE(E35,1)),MONTH($K$11)=MONTH(EDATE(E35,1))),$K$11,EDATE(E35,1)) -> 2023-02-23 | F36: =IF(A36=1,E36-E35,0) -> 31 | G36: =EOMONTH(E35,0)-E35 -> 8 | H36: =E36-EOMONTH(E35,0) -> 23 | I36: =SUM(J36:U36) -> 6668.02 | J36: =IF(B36<$K$10,$L$12,-$J$33-SUM($J$35:J35)) -> 2778 | K36: =ROUND(($K$9-SUM($J$35:J35))*(($K$14/(IF(ROUND(YEAR(E35)/4,0)-YEAR(E35)/4=0,366,365)))*G36)+($K$9-SUM($J$35:J35))*(($K$14/(IF(ROUND(YEAR(E36)/4,0)-YEAR(E36)/4=0,366,365)))*H36),2) -> 2890.02 | L36: 1000 | V36: х | W36: х
A37: 1 | B37: 3 | D37: 4 | E37: =IF(AND(YEAR($K$11)=YEAR(EDATE(E36,1)),MONTH($K$11)=MONTH(EDATE(E36,1))),$K$11,EDATE(E36,1)) -> 2023-03-23 | F37: 28 | G37: =EOMONTH(E36,0)-E36 -> 5 | H37: =E37-EOMONTH(E36,0) -> 23 | I37: 6313.76 | J37: =IF(B37<$K$10,$L$12,-$J$33-SUM($J$35:J36)) -> 2778 | K37: =ROUND(($K$9-SUM($J$35:J36))*(($K$14/(IF(ROUND(YEAR(E36)/4,0)-YEAR(E36)/4=0,366,365)))*G37)+($K$9-SUM($J$35:J36))*(($K$14/(IF(ROUND(YEAR(E37)/4,0)-YEAR(E37)/4=0,366,365)))*H37),2) -> 2535.76 | L37: 1000 | V37: х | W37: х
A38: 1 | B38: 4 | D38: 5 | E38: 2023-04-23 | F38: 31 | G38: 8 | H38: 23 | I38: 6502.87 | J38: =IF(B38<$K$10,$L$12,-$J$33-SUM($J$35:J37)) -> 2778 | K38: =ROUND(($K$9-SUM($J$35:J37))*(($K$14/(IF(ROUND(YEAR(E37)/4,0)-YEAR(E37)/4=0,366,365)))*G38)+($K$9-SUM($J$35:J37))*(($K$14/(IF(ROUND(YEAR(E38)/4,0)-YEAR(E38)/4=0,366,365)))*H38),2) -> 2724.87 | L38: 1000 | V38: х | W38: х
A39: 1 | B39: 5 | D39: 6 | E39: 2023-05-23 | F39: 30 | G39: 7 | H39: 23 | I39: 6335.05 | J39: =IF(B39<$K$10,$L$12,-$J$33-SUM($J$35:J38)) -> 2778 | K39: =ROUND(($K$9-SUM($J$35:J38))*(($K$14/(IF(ROUND(YEAR(E38)/4,0)-YEAR(E38)/4=0,366,365)))*G39)+($K$9-SUM($J$35:J38))*(($K$14/(IF(ROUND(YEAR(E39)/4,0)-YEAR(E39)/4=0,366,365)))*H39),2) -> 2557.05 | L39: 1000 | V39: х | W39: х
A40: 1 | B40: 6 | D40: 7 | E40: 2023-06-23 | F40: 31 | G40: 8 | H40: 23 | I40: 6337.71 | J40: =IF(B40<$K$10,$L$12,-$J$33-SUM($J$35:J39)) -> 2778 | K40: =ROUND(($K$9-SUM($J$35:J39))*(($K$14/(IF(ROUND(YEAR(E39)/4,0)-YEAR(E39)/4=0,366,365)))*G40)+($K$9-SUM($J$35:J39))*(($K$14/(IF(ROUND(YEAR(E40)/4,0)-YEAR(E40)/4=0,366,365)))*H40),2) -> 2559.71 | L40: 1000 | V40: х | W40: х
A41: 1 | B41: 7 | D41: 8 | E41: 2023-07-23 | F41: 30 | G41: 7 | H41: 23 | I41: 6175.22 | J41: =IF(B41<$K$10,$L$12,-$J$33-SUM($J$35:J40)) -> 2778 | K41: =ROUND(($K$9-SUM($J$35:J40))*(($K$14/(IF(ROUND(YEAR(E40)/4,0)-YEAR(E40)/4=0,366,365)))*G41)+($K$9-SUM($J$35:J40))*(($K$14/(IF(ROUND(YEAR(E41)/4,0)-YEAR(E41)/4=0,366,365)))*H41),2) -> 2397.22 | L41: 1000 | V41: х | W41: х
A42: 1 | B42: 8 | D42: 9 | E42: 2023-08-23 | F42: 31 | G42: 8 | H42: 23 | I42: 6172.55 | J42: =IF(B42<$K$10,$L$12,-$J$33-SUM($J$35:J41)) -> 2778 | K42: =ROUND(($K$9-SUM($J$35:J41))*(($K$14/(IF(ROUND(YEAR(E41)/4,0)-YEAR(E41)/4=0,366,365)))*G42)+($K$9-SUM($J$35:J41))*(($K$14/(IF(ROUND(YEAR(E42)/4,0)-YEAR(E42)/4=0,366,365)))*H42),2) -> 2394.55 | L42: 1000 | V42: х | W42: х
A43: 1 | B43: 9 | D43: 10 | E43: 2023-09-23 | F43: 31 | G43: 8 | H43: 23 | I43: 6089.97 | J43: =IF(B43<$K$10,$L$12,-$J$33-SUM($J$35:J42)) -> 2778 | K43: =ROUND(($K$9-SUM($J$35:J42))*(($K$14/(IF(ROUND(YEAR(E42)/4,0)-YEAR(E42)/4=0,366,365)))*G43)+($K$9-SUM($J$35:J42))*(($K$14/(IF(ROUND(YEAR(E43)/4,0)-YEAR(E43)/4=0,366,365)))*H43),2) -> 2311.97 | L43: 1000 | V43: х | W43: х
A44: 1 | B44: 10 | D44: 11 | E44: 2023-10-23 | F44: 30 | G44: 7 | H44: 23 | I44: 5935.48 | J44: =IF(B44<$K$10,$L$12,-$J$33-SUM($J$35:J43)) -> 2778 | K44: =ROUND(($K$9-SUM($J$35:J43))*(($K$14/(IF(ROUND(YEAR(E43)/4,0)-YEAR(E43)/4=0,366,365)))*G44)+($K$9-SUM($J$35:J43))*(($K$14/(IF(ROUND(YEAR(E44)/4,0)-YEAR(E44)/4=0,366,365)))*H44),2) -> 2157.48 | L44: 1000 | V44: х | W44: х
A45: 1 | B45: 11 | D45: 12 | E45: 2023-11-23 | F45: 31 | G45: 8 | H45: 23 | I45: 5924.81 | J45: =IF(B45<$K$10,$L$12,-$J$33-SUM($J$35:J44)) -> 2778 | K45: =ROUND(($K$9-SUM($J$35:J44))*(($K$14/(IF(ROUND(YEAR(E44)/4,0)-YEAR(E44)/4=0,366,365)))*G45)+($K$9-SUM($J$35:J44))*(($K$14/(IF(ROUND(YEAR(E45)/4,0)-YEAR(E45)/4=0,366,365)))*H45),2) -> 2146.81 | L45: 1000 | V45: х | W45: х
A46: 1 | B46: 12 | D46: 13 | E46: 2023-12-23 | F46: 30 | G46: 7 | H46: 23 | I46: =SUM(J46:U46) -> 5775.65 | J46: =IF(B46<$K$10,$L$12,-$J$33-SUM($J$35:J45)) -> 2778 | K46: =ROUND(($K$9-SUM($J$35:J45))*(($K$14/(IF(ROUND(YEAR(E45)/4,0)-YEAR(E45)/4=0,366,365)))*G46)+($K$9-SUM($J$35:J45))*(($K$14/(IF(ROUND(YEAR(E46)/4,0)-YEAR(E46)/4=0,366,365)))*H46),2) -> 1997.65 | L46: 1000 | N46: 0 | O46: =IF(B46<$K$10,$K$9*$K$17,0) -> 0 | T46: =IF(B46<$K$10,$K$9*$K$20,0) -> 0 | V46: х | W46: х
A47: 1 | B47: 13 | D47: 14 | E47: 2024-01-23 | F47: 31 | G47: 8 | H47: 23 | I47: =SUM(J47:U47) -> 5755.64 | J47: =IF(B47<$K$10,$L$12,-$J$33-SUM($J$35:J46)) -> 2778 | K47: =ROUND(($K$9-SUM($J$35:J46))*(($K$14/(IF(ROUND(YEAR(E46)/4,0)-YEAR(E46)/4=0,366,365)))*G47)+($K$9-SUM($J$35:J46))*(($K$14/(IF(ROUND(YEAR(E47)/4,0)-YEAR(E47)/4=0,366,365)))*H47),2) -> 1977.64 | L47: 1000 | V47: х | W47: х
A48: 1 | B48: 14 | D48: 15 | E48: 2024-02-23 | F48: 31 | G48: 8 | H48: 23 | I48: 5671.89 | J48: =IF(B48<$K$10,$L$12,-$J$33-SUM($J$35:J47)) -> 2778 | K48: =ROUND(($K$9-SUM($J$35:J47))*(($K$14/(IF(ROUND(YEAR(E47)/4,0)-YEAR(E47)/4=0,366,365)))*G48)+($K$9-SUM($J$35:J47))*(($K$14/(IF(ROUND(YEAR(E48)/4,0)-YEAR(E48)/4=0,366,365)))*H48),2) -> 1893.89 | L48: 1000 | V48: х | W48: х
A49: 1 | B49: 15 | D49: 16 | E49: 2024-03-23 | F49: 29 | G49: 6 | H49: 23 | I49: 5472.66 | J49: =IF(B49<$K$10,$L$12,-$J$33-SUM($J$35:J48)) -> 2778 | K49: =ROUND(($K$9-SUM($J$35:J48))*(($K$14/(IF(ROUND(YEAR(E48)/4,0)-YEAR(E48)/4=0,366,365)))*G49)+($K$9-SUM($J$35:J48))*(($K$14/(IF(ROUND(YEAR(E49)/4,0)-YEAR(E49)/4=0,366,365)))*H49),2) -> 1694.66 | L49: 1000 | V49: х | W49: х
A50: 1 | B50: 16 | D50: 17 | E50: 2024-04-23 | F50: 31 | G50: 8 | H50: 23 | I50: 5507.18 | J50: =IF(B50<$K$10,$L$12,-$J$33-SUM($J$35:J49)) -> 2778 | K50: =ROUND(($K$9-SUM($J$35:J49))*(($K$14/(IF(ROUND(YEAR(E49)/4,0)-YEAR(E49)/4=0,366,365)))*G50)+($K$9-SUM($J$35:J49))*(($K$14/(IF(ROUND(YEAR(E50)/4,0)-YEAR(E50)/4=0,366,365)))*H50),2) -> 1729.18 | L50: 1000 | V50: х | W50: х
A51: 1 | B51: 17 | D51: 18 | E51: 2024-05-23 | F51: 30 | G51: 7 | H51: 23 | I51: 5371.7 | J51: =IF(B51<$K$10,$L$12,-$J$33-SUM($J$35:J50)) -> 2778 | K51: =ROUND(($K$9-SUM($J$35:J50))*(($K$14/(IF(ROUND(YEAR(E50)/4,0)-YEAR(E50)/4=0,366,365)))*G51)+($K$9-SUM($J$35:J50))*(($K$14/(IF(ROUND(YEAR(E51)/4,0)-YEAR(E51)/4=0,366,365)))*H51),2) -> 1593.7 | L51: 1000 | V51: х | W51: х
A52: 1 | B52: =B51+1 -> 18 | D52: 19 | E52: 2024-06-23 | F52: 31 | G52: 8 | H52: 23 | I52: 5342.48 | J52: =IF(B52<$K$10,$L$12,-$J$33-SUM($J$35:J51)) -> 2778 | K52: =ROUND(($K$9-SUM($J$35:J51))*(($K$14/(IF(ROUND(YEAR(E51)/4,0)-YEAR(E51)/4=0,366,365)))*G52)+($K$9-SUM($J$35:J51))*(($K$14/(IF(ROUND(YEAR(E52)/4,0)-YEAR(E52)/4=0,366,365)))*H52),2) -> 1564.48 | L52: 1000 | V52: х | W52: х
A53: 1 | B53: 19 | D53: 20 | E53: 2024-07-23 | F53: 30 | G53: 7 | H53: 23 | I53: 5212.31 | J53: =IF(B53<$K$10,$L$12,-$J$33-SUM($J$35:J52)) -> 2778 | K53: =ROUND(($K$9-SUM($J$35:J52))*(($K$14/(IF(ROUND(YEAR(E52)/4,0)-YEAR(E52)/4=0,366,365)))*G53)+($K$9-SUM($J$35:J52))*(($K$14/(IF(ROUND(YEAR(E53)/4,0)-YEAR(E53)/4=0,366,365)))*H53),2) -> 1434.31 | L53: 1000 | V53: х | W53: х
A54: 1 | B54: 20 | D54: 21 | E54: 2024-08-23 | F54: 31 | G54: 8 | H54: 23 | I54: 5177.77 | J54: =IF(B54<$K$10,$L$12,-$J$33-SUM($J$35:J53)) -> 2778 | K54: =ROUND(($K$9-SUM($J$35:J53))*(($K$14/(IF(ROUND(YEAR(E53)/4,0)-YEAR(E53)/4=0,366,365)))*G54)+($K$9-SUM($J$35:J53))*(($K$14/(IF(ROUND(YEAR(E54)/4,0)-YEAR(E54)/4=0,366,365)))*H54),2) -> 1399.77 | L54: 1000 | V54: х | W54: х
A55: 1 | B55: 21 | D55: 22 | E55: 2024-09-23 | F55: 31 | G55: 8 | H55: 23 | I55: 5095.42 | J55: =IF(B55<$K$10,$L$12,-$J$33-SUM($J$35:J54)) -> 2778 | K55: =ROUND(($K$9-SUM($J$35:J54))*(($K$14/(IF(ROUND(YEAR(E54)/4,0)-YEAR(E54)/4=0,366,365)))*G55)+($K$9-SUM($J$35:J54))*(($K$14/(IF(ROUND(YEAR(E55)/4,0)-YEAR(E55)/4=0,366,365)))*H55),2) -> 1317.42 | L55: 1000 | V55: х | W55: х
A56: 1 | B56: 22 | D56: 23 | E56: 2024-10-23 | F56: 30 | G56: 7 | H56: 23 | I56: 4973.22 | J56: =IF(B56<$K$10,$L$12,-$J$33-SUM($J$35:J55)) -> 2778 | K56: =ROUND(($K$9-SUM($J$35:J55))*(($K$14/(IF(ROUND(YEAR(E55)/4,0)-YEAR(E55)/4=0,366,365)))*G56)+($K$9-SUM($J$35:J55))*(($K$14/(IF(ROUND(YEAR(E56)/4,0)-YEAR(E56)/4=0,366,365)))*H56),2) -> 1195.22 | L56: 1000 | V56: х | W56: х
A57: 1 | B57: 23 | D57: 24 | E57: 2024-11-23 | F57: 31 | G57: 8 | H57: 23 | I57: 4930.71 | J57: =IF(B57<$K$10,$L$12,-$J$33-SUM($J$35:J56)) -> 2778 | K57: =ROUND(($K$9-SUM($J$35:J56))*(($K$14/(IF(ROUND(YEAR(E56)/4,0)-YEAR(E56)/4=0,366,365)))*G57)+($K$9-SUM($J$35:J56))*(($K$14/(IF(ROUND(YEAR(E57)/4,0)-YEAR(E57)/4=0,366,365)))*H57),2) -> 1152.71 | L57: 1000 | V57: х | W57: х
A58: 1 | B58: 24 | D58: 25 | E58: 2024-12-23 | F58: 30 | G58: 7 | H58: 23 | I58: =SUM(J58:U58) -> 4813.83 | J58: =IF(B58<$K$10,$L$12,-$J$33-SUM($J$35:J57)) -> 2778 | K58: =ROUND(($K$9-SUM($J$35:J57))*(($K$14/(IF(ROUND(YEAR(E57)/4,0)-YEAR(E57)/4=0,366,365)))*G58)+($K$9-SUM($J$35:J57))*(($K$14/(IF(ROUND(YEAR(E58)/4,0)-YEAR(E58)/4=0,366,365)))*H58),2) -> 1035.83 | L58: 1000 | N58: 0 | O58: =IF(B58<$K$10,$K$9*$K$17,0) -> 0 | T58: =IF(B58<$K$10,$K$9*$K$20,0) -> 0 | V58: х | W58: х
A59: 1 | B59: 25 | D59: 26 | E59: 2025-01-23 | F59: 31 | G59: 8 | H59: 23 | I59: 4768.01 | J59: =IF(B59<$K$10,$L$12,-$J$33-SUM($J$35:J58)) -> 2778 | K59: =ROUND(($K$9-SUM($J$35:J58))*(($K$14/(IF(ROUND(YEAR(E58)/4,0)-YEAR(E58)/4=0,366,365)))*G59)+($K$9-SUM($J$35:J58))*(($K$14/(IF(ROUND(YEAR(E59)/4,0)-YEAR(E59)/4=0,366,365)))*H59),2) -> 990.01 | L59: 1000 | V59: х | W59: х
A60: 1 | B60: 26 | D60: 27 | E60: 2025-02-23 | F60: 31 | G60: 8 | H60: 23 | I60: 4686.13 | J60: =IF(B60<$K$10,$L$12,-$J$33-SUM($J$35:J59)) -> 2778 | K60: =ROUND(($K$9-SUM($J$35:J59))*(($K$14/(IF(ROUND(YEAR(E59)/4,0)-YEAR(E59)/4=0,366,365)))*G60)+($K$9-SUM($J$35:J59))*(($K$14/(IF(ROUND(YEAR(E60)/4,0)-YEAR(E60)/4=0,366,365)))*H60),2) -> 908.13 | L60: 1000 | V60: х | W60: х
A61: 1 | B61: 27 | D61: 28 | E61: 2025-03-23 | F61: 28 | G61: 5 | H61: 23 | I61: 4523.66 | J61: =IF(B61<$K$10,$L$12,-$J$33-SUM($J$35:J60)) -> 2778 | K61: =ROUND(($K$9-SUM($J$35:J60))*(($K$14/(IF(ROUND(YEAR(E60)/4,0)-YEAR(E60)/4=0,366,365)))*G61)+($K$9-SUM($J$35:J60))*(($K$14/(IF(ROUND(YEAR(E61)/4,0)-YEAR(E61)/4=0,366,365)))*H61),2) -> 745.66 | L61: 1000 | V61: х | W61: х
A62: 1 | B62: 28 | D62: 29 | E62: 2025-04-23 | F62: 31 | G62: 8 | H62: 23 | I62: 4520.97 | J62: =IF(B62<$K$10,$L$12,-$J$33-SUM($J$35:J61)) -> 2778 | K62: =ROUND(($K$9-SUM($J$35:J61))*(($K$14/(IF(ROUND(YEAR(E61)/4,0)-YEAR(E61)/4=0,366,365)))*G62)+($K$9-SUM($J$35:J61))*(($K$14/(IF(ROUND(YEAR(E62)/4,0)-YEAR(E62)/4=0,366,365)))*H62),2) -> 742.97 | L62: 1000 | V62: х | W62: х
A63: 1 | B63: 29 | D63: 30 | E63: 2025-05-23 | F63: 30 | G63: 7 | H63: 23 | I63: 4417.09 | J63: =IF(B63<$K$10,$L$12,-$J$33-SUM($J$35:J62)) -> 2778 | K63: =ROUND(($K$9-SUM($J$35:J62))*(($K$14/(IF(ROUND(YEAR(E62)/4,0)-YEAR(E62)/4=0,366,365)))*G63)+($K$9-SUM($J$35:J62))*(($K$14/(IF(ROUND(YEAR(E63)/4,0)-YEAR(E63)/4=0,366,365)))*H63),2) -> 639.09 | L63: 1000 | V63: х | W63: х
A64: 1 | B64: 30 | D64: 31 | E64: 2025-06-23 | F64: 31 | G64: 8 | H64: 23 | I64: 4355.81 | J64: =IF(B64<$K$10,$L$12,-$J$33-SUM($J$35:J63)) -> 2778 | K64: =ROUND(($K$9-SUM($J$35:J63))*(($K$14/(IF(ROUND(YEAR(E63)/4,0)-YEAR(E63)/4=0,366,365)))*G64)+($K$9-SUM($J$35:J63))*(($K$14/(IF(ROUND(YEAR(E64)/4,0)-YEAR(E64)/4=0,366,365)))*H64),2) -> 577.81 | L64: 1000 | V64: х | W64: х
A65: 1 | B65: 31 | D65: 32 | E65: 2025-07-23 | F65: 30 | G65: 7 | H65: 23 | I65: 4257.26 | J65: =IF(B65<$K$10,$L$12,-$J$33-SUM($J$35:J64)) -> 2778 | K65: =ROUND(($K$9-SUM($J$35:J64))*(($K$14/(IF(ROUND(YEAR(E64)/4,0)-YEAR(E64)/4=0,366,365)))*G65)+($K$9-SUM($J$35:J64))*(($K$14/(IF(ROUND(YEAR(E65)/4,0)-YEAR(E65)/4=0,366,365)))*H65),2) -> 479.26 | L65: 1000 | V65: х | W65: х
A66: 1 | B66: 32 | D66: 33 | E66: 2025-08-23 | F66: 31 | G66: 8 | H66: 23 | I66: 4190.66 | J66: =IF(B66<$K$10,$L$12,-$J$33-SUM($J$35:J65)) -> 2778 | K66: =ROUND(($K$9-SUM($J$35:J65))*(($K$14/(IF(ROUND(YEAR(E65)/4,0)-YEAR(E65)/4=0,366,365)))*G66)+($K$9-SUM($J$35:J65))*(($K$14/(IF(ROUND(YEAR(E66)/4,0)-YEAR(E66)/4=0,366,365)))*H66),2) -> 412.66 | L66: 1000 | V66: х | W66: х
A67: =IF(B67<=$K$10,1,0) -> 1 | B67: 33 | D67: 34 | E67: 2025-09-23 | F67: 31 | G67: 8 | H67: 23 | I67: 4108.08 | J67: =IF(B67<$K$10,$L$12,-$J$33-SUM($J$35:J66)) -> 2778 | K67: =ROUND(($K$9-SUM($J$35:J66))*(($K$14/(IF(ROUND(YEAR(E66)/4,0)-YEAR(E66)/4=0,366,365)))*G67)+($K$9-SUM($J$35:J66))*(($K$14/(IF(ROUND(YEAR(E67)/4,0)-YEAR(E67)/4=0,366,365)))*H67),2) -> 330.08 | L67: =IF(A67=1,IF(AND(YEAR($K$11)=YEAR(EDATE(E66,1)),MONTH($K$11)=MONTH(EDATE(E66,1))),$O$16-$O$38,$O$16),0) -> 1000 | V67: х | W67: х
A68: 1 | B68: =B67+1 -> 34 | D68: 35 | E68: 2025-10-23 | F68: =IF(A68=1,E68-E67,0) -> 30 | G68: 7 | H68: 23 | I68: 4017.52 | J68: =IF(B68<$K$10,$L$12,-$J$33-SUM($J$35:J67)) -> 2778 | K68: =ROUND(($K$9-SUM($J$35:J67))*(($K$14/(IF(ROUND(YEAR(E67)/4,0)-YEAR(E67)/4=0,366,365)))*G68)+($K$9-SUM($J$35:J67))*(($K$14/(IF(ROUND(YEAR(E68)/4,0)-YEAR(E68)/4=0,366,365)))*H68),2) -> 239.52 | L68: 1000 | V68: х | W68: х
A69: 1 | B69: 35 | D69: 36 | E69: 2025-11-23 | F69: 31 | G69: 8 | H69: 23 | I69: 3942.92 | J69: =IF(B69<$K$10,$L$12,-$J$33-SUM($J$35:J68)) -> 2778 | K69: =ROUND(($K$9-SUM($J$35:J68))*(($K$14/(IF(ROUND(YEAR(E68)/4,0)-YEAR(E68)/4=0,366,365)))*G69)+($K$9-SUM($J$35:J68))*(($K$14/(IF(ROUND(YEAR(E69)/4,0)-YEAR(E69)/4=0,366,365)))*H69),2) -> 164.92 | L69: 1000 | V69: х | W69: х
A70: 1 | B70: 36 | D70: 37 | E70: 2025-12-22 | F70: 29 | G70: 7 | H70: 22 | I70: 3847.03 | J70: =IF(B70<$K$10,$L$12,-$J$33-SUM($J$35:J69)) -> 2770 | K70: =ROUND(($K$9-SUM($J$35:J69))*(($K$14/(IF(ROUND(YEAR(E69)/4,0)-YEAR(E69)/4=0,366,365)))*G70)+($K$9-SUM($J$35:J69))*(($K$14/(IF(ROUND(YEAR(E70)/4,0)-YEAR(E70)/4=0,366,365)))*H70),2) -> 77.03 | L70: 1000 | O70: =IF(B70<$K$10,$K$9*$K$17,0) -> 0 | T70: =IF(B70<$K$10,$K$9*$K$20,0) -> 0 | V70: х | W70: х
A71: 0 | B71: 37 | D71: 38 | E71: 2026-01-22 | F71: 0 | G71: =EOMONTH(E70,0)-E70 -> 9 | H71: =E71-EOMONTH(E70,0) -> 22 | I71: 0 | J71: =IF(B71<$K$10,$L$12,-$J$33-SUM($J$35:J70)) -> 0 | K71: =ROUND(($K$9-SUM($J$35:J70))*(($K$14/(IF(ROUND(YEAR(E70)/4,0)-YEAR(E70)/4=0,366,365)))*G71)+($K$9-SUM($J$35:J70))*(($K$14/(IF(ROUND(YEAR(E71)/4,0)-YEAR(E71)/4=0,366,365)))*H71),2) -> 0 | L71: 0 | V71: х | W71: х
A72: 0 | B72: 38 | D72: 39 | E72: 2026-02-22 | F72: 0 | G72: 9 | H72: 22 | I72: 0 | J72: =IF(B72<$K$10,$L$12,-$J$33-SUM($J$35:J71)) -> 0 | K72: =ROUND(($K$9-SUM($J$35:J71))*(($K$14/(IF(ROUND(YEAR(E71)/4,0)-YEAR(E71)/4=0,366,365)))*G72)+($K$9-SUM($J$35:J71))*(($K$14/(IF(ROUND(YEAR(E72)/4,0)-YEAR(E72)/4=0,366,365)))*H72),2) -> 0 | L72: 0 | V72: х | W72: х
A73: 0 | B73: 39 | D73: 40 | E73: 2026-03-22 | F73: 0 | G73: 6 | H73: 22 | I73: 0 | J73: =IF(B73<$K$10,$L$12,-$J$33-SUM($J$35:J72)) -> 0 | K73: =ROUND(($K$9-SUM($J$35:J72))*(($K$14/(IF(ROUND(YEAR(E72)/4,0)-YEAR(E72)/4=0,366,365)))*G73)+($K$9-SUM($J$35:J72))*(($K$14/(IF(ROUND(YEAR(E73)/4,0)-YEAR(E73)/4=0,366,365)))*H73),2) -> 0 | L73: 0 | V73: х | W73: х
A74: 0 | B74: 40 | D74: 41 | E74: 2026-04-22 | F74: 0 | G74: 9 | H74: 22 | I74: 0 | J74: =IF(B74<$K$10,$L$12,-$J$33-SUM($J$35:J73)) -> 0 | K74: =ROUND(($K$9-SUM($J$35:J73))*(($K$14/(IF(ROUND(YEAR(E73)/4,0)-YEAR(E73)/4=0,366,365)))*G74)+($K$9-SUM($J$35:J73))*(($K$14/(IF(ROUND(YEAR(E74)/4,0)-YEAR(E74)/4=0,366,365)))*H74),2) -> 0 | L74: 0 | V74: х | W74: х
A75: 0 | B75: 41 | D75: 42 | E75: 2026-05-22 | F75: 0 | G75: 8 | H75: 22 | I75: 0 | J75: =IF(B75<$K$10,$L$12,-$J$33-SUM($J$35:J74)) -> 0 | K75: =ROUND(($K$9-SUM($J$35:J74))*(($K$14/(IF(ROUND(YEAR(E74)/4,0)-YEAR(E74)/4=0,366,365)))*G75)+($K$9-SUM($J$35:J74))*(($K$14/(IF(ROUND(YEAR(E75)/4,0)-YEAR(E75)/4=0,366,365)))*H75),2) -> 0 | L75: 0 | V75: х | W75: х
A76: 0 | B76: 42 | D76: 43 | E76: 2026-06-22 | F76: 0 | G76: 9 | H76: 22 | I76: 0 | J76: =IF(B76<$K$10,$L$12,-$J$33-SUM($J$35:J75)) -> 0 | K76: =ROUND(($K$9-SUM($J$35:J75))*(($K$14/(IF(ROUND(YEAR(E75)/4,0)-YEAR(E75)/4=0,366,365)))*G76)+($K$9-SUM($J$35:J75))*(($K$14/(IF(ROUND(YEAR(E76)/4,0)-YEAR(E76)/4=0,366,365)))*H76),2) -> 0 | L76: 0 | V76: х | W76: х
A77: 0 | B77: 43 | D77: 44 | E77: 2026-07-22 | F77: 0 | G77: 8 | H77: 22 | I77: 0 | J77: =IF(B77<$K$10,$L$12,-$J$33-SUM($J$35:J76)) -> 0 | K77: =ROUND(($K$9-SUM($J$35:J76))*(($K$14/(IF(ROUND(YEAR(E76)/4,0)-YEAR(E76)/4=0,366,365)))*G77)+($K$9-SUM($J$35:J76))*(($K$14/(IF(ROUND(YEAR(E77)/4,0)-YEAR(E77)/4=0,366,365)))*H77),2) -> 0 | L77: 0 | V77: х | W77: х
A78: 0 | B78: 44 | D78: 45 | E78: 2026-08-22 | F78: 0 | G78: 9 | H78: 22 | I78: 0 | J78: =IF(B78<$K$10,$L$12,-$J$33-SUM($J$35:J77)) -> 0 | K78: =ROUND(($K$9-SUM($J$35:J77))*(($K$14/(IF(ROUND(YEAR(E77)/4,0)-YEAR(E77)/4=0,366,365)))*G78)+($K$9-SUM($J$35:J77))*(($K$14/(IF(ROUND(YEAR(E78)/4,0)-YEAR(E78)/4=0,366,365)))*H78),2) -> 0 | L78: 0 | V78: х | W78: х
A79: 0 | B79: 45 | D79: 46 | E79: 2026-09-22 | F79: 0 | G79: 9 | H79: 22 | I79: 0 | J79: =IF(B79<$K$10,$L$12,-$J$33-SUM($J$35:J78)) -> 0 | K79: =ROUND(($K$9-SUM($J$35:J78))*(($K$14/(IF(ROUND(YEAR(E78)/4,0)-YEAR(E78)/4=0,366,365)))*G79)+($K$9-SUM($J$35:J78))*(($K$14/(IF(ROUND(YEAR(E79)/4,0)-YEAR(E79)/4=0,366,365)))*H79),2) -> 0 | L79: 0 | V79: х | W79: х
A80: 0 | B80: 46 | D80: 47 | E80: 2026-10-22 | F80: 0 | G80: 8 | H80: 22 | I80: 0 | J80: =IF(B80<$K$10,$L$12,-$J$33-SUM($J$35:J79)) -> 0 | K80: =ROUND(($K$9-SUM($J$35:J79))*(($K$14/(IF(ROUND(YEAR(E79)/4,0)-YEAR(E79)/4=0,366,365)))*G80)+($K$9-SUM($J$35:J79))*(($K$14/(IF(ROUND(YEAR(E80)/4,0)-YEAR(E80)/4=0,366,365)))*H80),2) -> 0 | L80: 0 | V80: х | W80: х
A81: 0 | B81: 47 | D81: 48 | E81: 2026-11-22 | F81: 0 | G81: 9 | H81: 22 | I81: 0 | J81: =IF(B81<$K$10,$L$12,-$J$33-SUM($J$35:J80)) -> 0 | K81: =ROUND(($K$9-SUM($J$35:J80))*(($K$14/(IF(ROUND(YEAR(E80)/4,0)-YEAR(E80)/4=0,366,365)))*G81)+($K$9-SUM($J$35:J80))*(($K$14/(IF(ROUND(YEAR(E81)/4,0)-YEAR(E81)/4=0,366,365)))*H81),2) -> 0 | L81: 0 | V81: х | W81: х
A82: 0 | B82: 48 | D82: 49 | E82: 2026-12-22 | F82: 0 | G82: 8 | H82: 22 | I82: 0 | J82: =IF(B82<$K$10,$L$12,-$J$33-SUM($J$35:J81)) -> 0 | K82: =ROUND(($K$9-SUM($J$35:J81))*(($K$14/(IF(ROUND(YEAR(E81)/4,0)-YEAR(E81)/4=0,366,365)))*G82)+($K$9-SUM($J$35:J81))*(($K$14/(IF(ROUND(YEAR(E82)/4,0)-YEAR(E82)/4=0,366,365)))*H82),2) -> 0 | L82: 0 | O82: =IF(B82<$K$10,$K$9*$K$17,0) -> 0 | T82: =IF(B82<$K$10,$K$8*$K$20,0) -> 0 | V82: х | W82: х
A83: 0 | B83: 49 | D83: 50 | E83: 2027-01-22 | F83: 0 | G83: 9 | H83: 22 | I83: 0 | J83: =IF(B83<$K$10,$L$12,-$J$33-SUM($J$35:J82)) -> 0 | K83: =ROUND(($K$9-SUM($J$35:J82))*(($K$14/(IF(ROUND(YEAR(E82)/4,0)-YEAR(E82)/4=0,366,365)))*G83)+($K$9-SUM($J$35:J82))*(($K$14/(IF(ROUND(YEAR(E83)/4,0)-YEAR(E83)/4=0,366,365)))*H83),2) -> 0 | L83: 0 | V83: х | W83: х
A84: 0 | B84: =B83+1 -> 50 | D84: 51 | E84: 2027-02-22 | F84: 0 | G84: 9 | H84: 22 | I84: 0 | J84: =IF(B84<$K$10,$L$12,-$J$33-SUM($J$35:J83)) -> 0 | K84: =ROUND(($K$9-SUM($J$35:J83))*(($K$14/(IF(ROUND(YEAR(E83)/4,0)-YEAR(E83)/4=0,366,365)))*G84)+($K$9-SUM($J$35:J83))*(($K$14/(IF(ROUND(YEAR(E84)/4,0)-YEAR(E84)/4=0,366,365)))*H84),2) -> 0 | L84: 0 | V84: х | W84: х
A85: 0 | B85: 51 | D85: 52 | E85: 2027-03-22 | F85: 0 | G85: 6 | H85: 22 | I85: 0 | J85: =IF(B85<$K$10,$L$12,-$J$33-SUM($J$35:J84)) -> 0 | K85: =ROUND(($K$9-SUM($J$35:J84))*(($K$14/(IF(ROUND(YEAR(E84)/4,0)-YEAR(E84)/4=0,366,365)))*G85)+($K$9-SUM($J$35:J84))*(($K$14/(IF(ROUND(YEAR(E85)/4,0)-YEAR(E85)/4=0,366,365)))*H85),2) -> 0 | L85: 0 | V85: х | W85: х
A86: 0 | B86: 52 | D86: 53 | E86: 2027-04-22 | F86: 0 | G86: 9 | H86: 22 | I86: 0 | J86: =IF(B86<$K$10,$L$12,-$J$33-SUM($J$35:J85)) -> 0 | K86: =ROUND(($K$9-SUM($J$35:J85))*(($K$14/(IF(ROUND(YEAR(E85)/4,0)-YEAR(E85)/4=0,366,365)))*G86)+($K$9-SUM($J$35:J85))*(($K$14/(IF(ROUND(YEAR(E86)/4,0)-YEAR(E86)/4=0,366,365)))*H86),2) -> 0 | L86: 0 | V86: х | W86: х
A87: 0 | B87: 53 | D87: 54 | E87: 2027-05-22 | F87: 0 | G87: 8 | H87: 22 | I87: 0 | J87: =IF(B87<$K$10,$L$12,-$J$33-SUM($J$35:J86)) -> 0 | K87: =ROUND(($K$9-SUM($J$35:J86))*(($K$14/(IF(ROUND(YEAR(E86)/4,0)-YEAR(E86)/4=0,366,365)))*G87)+($K$9-SUM($J$35:J86))*(($K$14/(IF(ROUND(YEAR(E87)/4,0)-YEAR(E87)/4=0,366,365)))*H87),2) -> 0 | L87: 0 | V87: х | W87: х
A88: 0 | B88: 54 | D88: 55 | E88: 2027-06-22 | F88: 0 | G88: 9 | H88: 22 | I88: 0 | J88: =IF(B88<$K$10,$L$12,-$J$33-SUM($J$35:J87)) -> 0 | K88: =ROUND(($K$9-SUM($J$35:J87))*(($K$14/(IF(ROUND(YEAR(E87)/4,0)-YEAR(E87)/4=0,366,365)))*G88)+($K$9-SUM($J$35:J87))*(($K$14/(IF(ROUND(YEAR(E88)/4,0)-YEAR(E88)/4=0,366,365)))*H88),2) -> 0 | L88: 0 | V88: х | W88: х
A89: 0 | B89: 55 | D89: 56 | E89: 2027-07-22 | F89: 0 | G89: 8 | H89: 22 | I89: 0 | J89: =IF(B89<$K$10,$L$12,-$J$33-SUM($J$35:J88)) -> 0 | K89: =ROUND(($K$9-SUM($J$35:J88))*(($K$14/(IF(ROUND(YEAR(E88)/4,0)-YEAR(E88)/4=0,366,365)))*G89)+($K$9-SUM($J$35:J88))*(($K$14/(IF(ROUND(YEAR(E89)/4,0)-YEAR(E89)/4=0,366,365)))*H89),2) -> 0 | L89: 0 | V89: х | W89: х
A90: 0 | B90: 56 | D90: 57 | E90: 2027-08-22 | F90: 0 | G90: 9 | H90: 22 | I90: 0 | J90: =IF(B90<$K$10,$L$12,-$J$33-SUM($J$35:J89)) -> 0 | K90: =ROUND(($K$9-SUM($J$35:J89))*(($K$14/(IF(ROUND(YEAR(E89)/4,0)-YEAR(E89)/4=0,366,365)))*G90)+($K$9-SUM($J$35:J89))*(($K$14/(IF(ROUND(YEAR(E90)/4,0)-YEAR(E90)/4=0,366,365)))*H90),2) -> 0 | L90: 0 | V90: х | W90: х
A91: 0 | B91: 57 | D91: 58 | E91: 2027-09-22 | F91: 0 | G91: 9 | H91: 22 | I91: 0 | J91: =IF(B91<$K$10,$L$12,-$J$33-SUM($J$35:J90)) -> 0 | K91: =ROUND(($K$9-SUM($J$35:J90))*(($K$14/(IF(ROUND(YEAR(E90)/4,0)-YEAR(E90)/4=0,366,365)))*G91)+($K$9-SUM($J$35:J90))*(($K$14/(IF(ROUND(YEAR(E91)/4,0)-YEAR(E91)/4=0,366,365)))*H91),2) -> 0 | L91: 0 | V91: х | W91: х
A92: 0 | B92: 58 | D92: 59 | E92: 2027-10-22 | F92: 0 | G92: 8 | H92: 22 | I92: 0 | J92: =IF(B92<$K$10,$L$12,-$J$33-SUM($J$35:J91)) -> 0 | K92: =ROUND(($K$9-SUM($J$35:J91))*(($K$14/(IF(ROUND(YEAR(E91)/4,0)-YEAR(E91)/4=0,366,365)))*G92)+($K$9-SUM($J$35:J91))*(($K$14/(IF(ROUND(YEAR(E92)/4,0)-YEAR(E92)/4=0,366,365)))*H92),2) -> 0 | L92: 0 | V92: х | W92: х
A93: 0 | B93: 59 | D93: 60 | E93: 2027-11-22 | F93: 0 | G93: 9 | H93: 22 | I93: 0 | J93: =IF(B93<$K$10,$L$12,-$J$33-SUM($J$35:J92)) -> 0 | K93: =ROUND(($K$9-SUM($J$35:J92))*(($K$14/(IF(ROUND(YEAR(E92)/4,0)-YEAR(E92)/4=0,366,365)))*G93)+($K$9-SUM($J$35:J92))*(($K$14/(IF(ROUND(YEAR(E93)/4,0)-YEAR(E93)/4=0,366,365)))*H93),2) -> 0 | L93: 0 | V93: х | W93: х
A94: 0 | B94: 60 | D94: 61 | E94: 2027-12-22 | F94: 0 | G94: 8 | H94: 22 | I94: 0 | J94: =IF(B94<$K$10,$L$12,-$J$33-SUM($J$35:J93)) -> 0 | K94: =ROUND(($K$9-SUM($J$35:J93))*(($K$14/(IF(ROUND(YEAR(E93)/4,0)-YEAR(E93)/4=0,366,365)))*G94)+($K$9-SUM($J$35:J93))*(($K$14/(IF(ROUND(YEAR(E94)/4,0)-YEAR(E94)/4=0,366,365)))*H94),2) -> 0 | L94: 0 | O94: =IF(B94<$K$10,$K$9*$K$17,0) -> 0 | T94: =IF(B94<$K$10,$K$8*$K$20,0) -> 0 | V94: х | W94: х
A95: 0 | B95: 61 | D95: 62 | E95: 2028-01-22 | F95: 0 | G95: 9 | H95: 22 | I95: 0 | J95: =IF(B95<$K$10,$L$12,-$J$33-SUM($J$35:J94)) -> 0 | K95: =ROUND(($K$9-SUM($J$35:J94))*(($K$14/(IF(ROUND(YEAR(E94)/4,0)-YEAR(E94)/4=0,366,365)))*G95)+($K$9-SUM($J$35:J94))*(($K$14/(IF(ROUND(YEAR(E95)/4,0)-YEAR(E95)/4=0,366,365)))*H95),2) -> 0 | L95: 0 | V95: х | W95: х
A96: 0 | B96: 62 | D96: 63 | E96: 2028-02-22 | F96: 0 | G96: 9 | H96: 22 | I96: 0 | J96: =IF(B96<$K$10,$L$12,-$J$33-SUM($J$35:J95)) -> 0 | K96: =ROUND(($K$9-SUM($J$35:J95))*(($K$14/(IF(ROUND(YEAR(E95)/4,0)-YEAR(E95)/4=0,366,365)))*G96)+($K$9-SUM($J$35:J95))*(($K$14/(IF(ROUND(YEAR(E96)/4,0)-YEAR(E96)/4=0,366,365)))*H96),2) -> 0 | L96: 0 | V96: х | W96: х
A97: 0 | B97: 63 | D97: 64 | E97: 2028-03-22 | F97: 0 | G97: 7 | H97: 22 | I97: 0 | J97: =IF(B97<$K$10,$L$12,-$J$33-SUM($J$35:J96)) -> 0 | K97: =ROUND(($K$9-SUM($J$35:J96))*(($K$14/(IF(ROUND(YEAR(E96)/4,0)-YEAR(E96)/4=0,366,365)))*G97)+($K$9-SUM($J$35:J96))*(($K$14/(IF(ROUND(YEAR(E97)/4,0)-YEAR(E97)/4=0,366,365)))*H97),2) -> 0 | L97: 0 | V97: х | W97: х
A98: 0 | B98: 64 | D98: 65 | E98: 2028-04-22 | F98: 0 | G98: 9 | H98: 22 | I98: 0 | J98: =IF(B98<$K$10,$L$12,-$J$33-SUM($J$35:J97)) -> 0 | K98: =ROUND(($K$9-SUM($J$35:J97))*(($K$14/(IF(ROUND(YEAR(E97)/4,0)-YEAR(E97)/4=0,366,365)))*G98)+($K$9-SUM($J$35:J97))*(($K$14/(IF(ROUND(YEAR(E98)/4,0)-YEAR(E98)/4=0,366,365)))*H98),2) -> 0 | L98: 0 | V98: х | W98: х
A99: =IF(B99<=$K$10,1,0) -> 0 | B99: 65 | D99: 66 | E99: 2028-05-22 | F99: 0 | G99: 8 | H99: 22 | I99: 0 | J99: =IF(B99<$K$10,$L$12,-$J$33-SUM($J$35:J98)) -> 0 | K99: =ROUND(($K$9-SUM($J$35:J98))*(($K$14/(IF(ROUND(YEAR(E98)/4,0)-YEAR(E98)/4=0,366,365)))*G99)+($K$9-SUM($J$35:J98))*(($K$14/(IF(ROUND(YEAR(E99)/4,0)-YEAR(E99)/4=0,366,365)))*H99),2) -> 0 | L99: =IF(A99=1,IF(AND(YEAR($K$11)=YEAR(EDATE(E98,1)),MONTH($K$11)=MONTH(EDATE(E98,1))),$O$16-$O$38,$O$16),0) -> 0 | V99: х | W99: х
A100: 0 | B100: =B99+1 -> 66 | D100: 67 | E100: 2028-06-22 | F100: =IF(A100=1,E100-E99,0) -> 0 | G100: 9 | H100: 22 | I100: 0 | J100: =IF(B100<$K$10,$L$12,-$J$33-SUM($J$35:J99)) -> 0 | K100: =ROUND(($K$9-SUM($J$35:J99))*(($K$14/(IF(ROUND(YEAR(E99)/4,0)-YEAR(E99)/4=0,366,365)))*G100)+($K$9-SUM($J$35:J99))*(($K$14/(IF(ROUND(YEAR(E100)/4,0)-YEAR(E100)/4=0,366,365)))*H100),2) -> 0 | L100: 0 | V100: х | W100: х
A101: 0 | B101: 67 | D101: 68 | E101: =IF(AND(YEAR($K$11)=YEAR(EDATE(E100,1)),MONTH($K$11)=MONTH(EDATE(E100,1))),$K$11,EDATE(E100,1)) -> 2028-07-22 | F101: 0 | G101: =EOMONTH(E100,0)-E100 -> 8 | H101: =E101-EOMONTH(E100,0) -> 22 | I101: 0 | J101: =IF(B101<$K$10,$L$12,-$J$33-SUM($J$35:J100)) -> 0 | K101: =ROUND(($K$9-SUM($J$35:J100))*(($K$14/(IF(ROUND(YEAR(E100)/4,0)-YEAR(E100)/4=0,366,365)))*G101)+($K$9-SUM($J$35:J100))*(($K$14/(IF(ROUND(YEAR(E101)/4,0)-YEAR(E101)/4=0,366,365)))*H101),2) -> 0 | L101: 0 | V101: х | W101: х
A102: 0 | B102: 68 | D102: 69 | E102: 2028-08-22 | F102: 0 | G102: 9 | H102: 22 | I102: 0 | J102: =IF(B102<$K$10,$L$12,-$J$33-SUM($J$35:J101)) -> 0 | K102: =ROUND(($K$9-SUM($J$35:J101))*(($K$14/(IF(ROUND(YEAR(E101)/4,0)-YEAR(E101)/4=0,366,365)))*G102)+($K$9-SUM($J$35:J101))*(($K$14/(IF(ROUND(YEAR(E102)/4,0)-YEAR(E102)/4=0,366,365)))*H102),2) -> 0 | L102: 0 | V102: х | W102: х
A103: 0 | B103: 69 | D103: 70 | E103: 2028-09-22 | F103: 0 | G103: 9 | H103: 22 | I103: 0 | J103: =IF(B103<$K$10,$L$12,-$J$33-SUM($J$35:J102)) -> 0 | K103: =ROUND(($K$9-SUM($J$35:J102))*(($K$14/(IF(ROUND(YEAR(E102)/4,0)-YEAR(E102)/4=0,366,365)))*G103)+($K$9-SUM($J$35:J102))*(($K$14/(IF(ROUND(YEAR(E103)/4,0)-YEAR(E103)/4=0,366,365)))*H103),2) -> 0 | L103: 0 | V103: х | W103: х
A104: 0 | B104: 70 | D104: 71 | E104: 2028-10-22 | F104: 0 | G104: 8 | H104: 22 | I104: 0 | J104: =IF(B104<$K$10,$L$12,-$J$33-SUM($J$35:J103)) -> 0 | K104: =ROUND(($K$9-SUM($J$35:J103))*(($K$14/(IF(ROUND(YEAR(E103)/4,0)-YEAR(E103)/4=0,366,365)))*G104)+($K$9-SUM($J$35:J103))*(($K$14/(IF(ROUND(YEAR(E104)/4,0)-YEAR(E104)/4=0,366,365)))*H104),2) -> 0 | L104: 0 | V104: х | W104: х
A105: 0 | B105: 71 | D105: 72 | E105: 2028-11-22 | F105: 0 | G105: 9 | H105: 22 | I105: 0 | J105: =IF(B105<$K$10,$L$12,-$J$33-SUM($J$35:J104)) -> 0 | K105: =ROUND(($K$9-SUM($J$35:J104))*(($K$14/(IF(ROUND(YEAR(E104)/4,0)-YEAR(E104)/4=0,366,365)))*G105)+($K$9-SUM($J$35:J104))*(($K$14/(IF(ROUND(YEAR(E105)/4,0)-YEAR(E105)/4=0,366,365)))*H105),2) -> 0 | L105: 0 | V105: х | W105: х
A106: 0 | B106: 72 | D106: 73 | E106: 2028-12-22 | F106: 0 | G106: 8 | H106: 22 | I106: 0 | J106: =IF(B106<$K$10,$L$12,-$J$33-SUM($J$35:J105)) -> 0 | K106: =ROUND(($K$9-SUM($J$35:J105))*(($K$14/(IF(ROUND(YEAR(E105)/4,0)-YEAR(E105)/4=0,366,365)))*G106)+($K$9-SUM($J$35:J105))*(($K$14/(IF(ROUND(YEAR(E106)/4,0)-YEAR(E106)/4=0,366,365)))*H106),2) -> 0 | L106: 0 | V106: х | W106: х
A107: 1 | D107: Усього | E107: х | F107: =SUM(F35:F70) -> 1095 | I107: =SUM(I35:I106) -> 189941.64 | J107: =SUM(J35:J106) -> 100000 | K107: =SUM(K35:K106) -> 53941.64 | L107: =SUM(L35:L106) -> 36000 | M107: =SUM(M33:M106) -> 0 | N107: =SUM(N33:N106) -> 0 | O107: 0 | P107: 0 | Q107: 0 | R107: 0 | S107: 0 | T107: 0 | U107: 0 | V107: =XIRR(I33:I106,E33:E106) -> 0.69126212 | W107: =SUM(J107:U107) -> 189941.64
A108: 1 | B108: 0
A109: 1 | B109: 0.01
A110: 1 | D110: Загальні витрати за кредитом (проценти за користуваннґ кредитом, комісії та інші обов'язкові платежі за додаткові та супутні послуги кредитодавця,кредитного посередника (за наявності) та третії осіб, пов'язані з отриманням, обслуговуванням та поверненням кредиту), грн. | Q110: =SUBTOTAL(9,K107:U107) -> 89941.64
A111: 1 | D111: Орієнтовна загальна вартість кредиту для споживача за весь строк користування кредитом (у т.ч. тіло кредиту, відсотки, комісії та інші платежі), грн. | Q111: =W107 -> 189941.64
A112: 1 | D112: Сума платежу за розрахунковий період, грн. | Q112: =I35 -> 6750.6
A113: 1 | D113: Орієнтовна реальна річна процентна ставка, % річних | Q113: =V107 -> 0.69126212
A114: 1
A115: 1 | D115: Застереження: наведені обчислення орієнтовної реальної річної процентної ставки та орієнтовної загальної вартості кредиту для споживача є репрезентативними та базуються на обраних споживачем умовах кредитування, викладених вище, і на припущенні, що договір про споживчий кредит залишатиметься дійсним протягом погодженого строку, а кредитодавець і споживач виконають свої обов’язки на умовах та у строки, визначені в договорі.
A116: 1 | D116: Орієнтовна реальна річна процентна ставка обчислена на основі припущення, що процентна ставка та інші платежі за послуги кредитодавця залишатимуться незмінними та застосовуватимуться протягом строку дії договору про споживчий кредит. Орієнтовна реальна річна процентна ставка обчислена з використанням фінансової функції ЧИСТВНДОХ програмного продукту Microsoft Excel.
A117: 1 | D117: Застереження: використання інших способів надання кредиту та/або зміна інших вищезазначених умов кредитування можуть мати наслідком застосування іншої орієнтовної реальної річної процентної ставки та орієнтовної загальної вартості кредиту для споживача.
